[Event "Early-Titled-Tuesday-Blitz-July-09-2024"]
[Site "Chess.com"]
[Date "2024.07.09"]
[Round "7"]
[White "SahibSinghKnight"]
[Black "Noki102"]
[Result "1-0"]
[WhiteElo "2684"]
[BlackElo "2539"]
[TimeControl "180+1"]
[EndTime "9:19:01 PDT"]
[Termination "SahibSinghKnight won by checkmate"]

1. e4 {[%clk 0:02:53.2]} 1... b6 {[%clk 0:03:00.1]} 2. d4 {[%clk 0:02:49.4]}
2... Bb7 {[%clk 0:03:00.5]} 3. Bd3 {[%clk 0:02:47.8]} 3... f5 {[%clk 0:03:00.9]}
4. exf5 {[%clk 0:02:47.2]} 4... Bxg2 {[%clk 0:03:01.8]} 5. Qh5+ {[%clk
0:02:47.4]} 5... g6 {[%clk 0:03:02.4]} 6. fxg6 {[%clk 0:02:48.1]} 6... Bg7
{[%clk 0:03:01.3]} 7. gxh7+ {[%clk 0:02:31.1]} 7... Kf8 {[%clk 0:03:00.8]} 8.
hxg8=Q+ {[%clk 0:02:31.6]} 8... Kxg8 {[%clk 0:03:01.7]} 9. Qg4 {[%clk 0:02:32]}
9... Bxh1 {[%clk 0:03:00.4]} 10. h4 {[%clk 0:02:32.6]} 10... e6 {[%clk
0:02:25.7]} 11. h5 {[%clk 0:02:26.5]} 11... Qf6 {[%clk 0:01:32]} 12. c3 {[%clk
0:02:26.2]} 12... Nc6 {[%clk 0:01:25.7]} 13. Bg5 {[%clk 0:02:25.6]} 13... Qf7
{[%clk 0:01:09.1]} 14. h6 {[%clk 0:02:25.4]} 14... Rf8 {[%clk 0:01:07.7]} 15.
hxg7 {[%clk 0:02:10.4]} 15... Qxf2+ {[%clk 0:00:44.2]} 16. Kd1 {[%clk
0:02:09.8]} 16... Bf3+ {[%clk 0:00:44.2]} 17. Qxf3 {[%clk 0:01:40.2]} 17...
Qxg1+ {[%clk 0:00:37.3]} 18. Kc2 {[%clk 0:01:27.7]} 18... Rh2+ {[%clk
0:00:32.9]} 19. Nd2 {[%clk 0:01:26.9]} 19... Rxf3 {[%clk 0:00:05.9]} 20. Rxg1
{[%clk 0:01:24.7]} 20... Rff2 {[%clk 0:00:04.6]} 21. Be3 {[%clk 0:01:14.8]}
21... Rfg2 {[%clk 0:00:04.4]} 22. Rf1 {[%clk 0:01:14]} 22... Rxg7 {[%clk
0:00:04]} 23. Bf4 {[%clk 0:01:12.9]} 23... Rhg2 {[%clk 0:00:03]} 24. Bxc7 {[%clk
0:01:11.9]} 24... Rf7 {[%clk 0:00:03.6]} 25. Rd1 {[%clk 0:01:04.7]} 25... Rff2
{[%clk 0:00:03.6]} 26. Be4 {[%clk 0:01:04.9]} 26... Rh2 {[%clk 0:00:03.2]} 27.
Bxh2 {[%clk 0:01:04.1]} 27... Rxh2 {[%clk 0:00:04.1]} 28. Rg1+ {[%clk
0:00:59.2]} 28... Kf7 {[%clk 0:00:03.6]} 29. Kd3 {[%clk 0:00:57.6]} 29... Ke7
{[%clk 0:00:04]} 30. Bxc6 {[%clk 0:00:55.3]} 30... dxc6 {[%clk 0:00:04.1]} 31.
Rg7+ {[%clk 0:00:55.9]} 31... Kd6 {[%clk 0:00:04.7]} 32. Ne4+ {[%clk 0:00:55.5]}
32... Kd5 {[%clk 0:00:04.8]} 33. c4# {[%clk 0:00:56.4]} 1-0

[Event "Early-Titled-Tuesday-Blitz-July-09-2024"]
[Site "Chess.com"]
[Date "2024.07.09"]
[Round "7"]
[White "Jospem"]
[Black "MagnusCarlsen"]
[Result "0-1"]
[WhiteElo "3114"]
[BlackElo "3193"]
[TimeControl "180+1"]
[EndTime "9:19:04 PDT"]
[Termination "MagnusCarlsen won by resignation"]

1. e4 {[%clk 0:03:00.9]} 1... e5 {[%clk 0:02:59.2]} 2. Nf3 {[%clk 0:03:00.6]}
2... Nc6 {[%clk 0:02:59.3]} 3. Nc3 {[%clk 0:03:01.2]} 3... Nf6 {[%clk
0:02:58.8]} 4. h3 {[%clk 0:03:01.8]} 4... h6 {[%clk 0:02:53]} 5. d4 {[%clk
0:02:56.3]} 5... exd4 {[%clk 0:02:53.2]} 6. Nxd4 {[%clk 0:02:57.2]} 6... Bb4
{[%clk 0:02:53.3]} 7. Nxc6 {[%clk 0:02:57.4]} 7... bxc6 {[%clk 0:02:50.7]} 8.
Bd3 {[%clk 0:02:57.5]} 8... O-O {[%clk 0:02:50.1]} 9. O-O {[%clk 0:02:57.7]}
9... Re8 {[%clk 0:02:50.7]} 10. Re1 {[%clk 0:02:31.9]} 10... d5 {[%clk
0:02:48.8]} 11. exd5 {[%clk 0:02:32.2]} 11... Rxe1+ {[%clk 0:02:48.1]} 12. Qxe1
{[%clk 0:02:33.1]} 12... cxd5 {[%clk 0:02:48.5]} 13. a3 {[%clk 0:02:19.9]} 13...
Bf8 {[%clk 0:02:46.5]} 14. Bf4 {[%clk 0:02:17.7]} 14... c5 {[%clk 0:02:46]} 15.
Rd1 {[%clk 0:02:14.6]} 15... Bb7 {[%clk 0:02:45]} 16. Be5 {[%clk 0:01:33]} 16...
Qb6 {[%clk 0:02:43.5]} 17. Qd2 {[%clk 0:01:22]} 17... d4 {[%clk 0:02:33.1]} 18.
Ne2 {[%clk 0:00:52.2]} 18... Re8 {[%clk 0:02:27.3]} 19. Bxf6 {[%clk 0:00:44]}
19... Qxf6 {[%clk 0:02:28.2]} 20. Qf4 {[%clk 0:00:44.3]} 20... Qc6 {[%clk
0:02:24]} 21. f3 {[%clk 0:00:25.4]} 21... Bd6 {[%clk 0:02:23]} 22. Qg4 {[%clk
0:00:21.7]} 22... Bc7 {[%clk 0:02:13.8]} 23. Be4 {[%clk 0:00:18]} 23... Qd6
{[%clk 0:02:01.4]} 24. Kf1 {[%clk 0:00:14.5]} 24... Bxe4 {[%clk 0:01:29.8]} 25.
fxe4 {[%clk 0:00:15.4]} 25... Qc6 {[%clk 0:01:29.6]} 26. Rd3 {[%clk 0:00:05.1]}
26... Rxe4 {[%clk 0:01:27.7]} 27. Qc8+ {[%clk 0:00:05.5]} 27... Re8 {[%clk
0:01:27.9]} 28. Qf5 {[%clk 0:00:05.8]} 28... g6 {[%clk 0:01:20.1]} 29. Qf3
{[%clk 0:00:06]} 29... Qe6 {[%clk 0:01:14.5]} 30. b4 {[%clk 0:00:04.4]} 30...
Bb6 {[%clk 0:01:11.2]} 31. bxc5 {[%clk 0:00:04.6]} 31... Bxc5 {[%clk 0:01:12.1]}
32. g4 {[%clk 0:00:02.3]} 32... Qa2 {[%clk 0:01:06.8]} 33. Rd2 {[%clk 0:00:02]}
33... Qb1+ {[%clk 0:00:58.6]} 34. Kg2 {[%clk 0:00:02.4]} 34... Qe1 {[%clk
0:00:59.1]} 35. Qf4 {[%clk 0:00:01.1]} 35... Rxe2+ {[%clk 0:00:59.1]} 0-1

[Event "Early-Titled-Tuesday-Blitz-July-09-2024"]
[Site "Chess.com"]
[Date "2024.07.09"]
[Round "7"]
[White "MKlose11"]
[Black "GMMikhailKazakov"]
[Result "1-0"]
[WhiteElo "2675"]
[BlackElo "2511"]
[TimeControl "180+1"]
[EndTime "9:19:04 PDT"]
[Termination "MKlose11 won on time"]

1. e4 {[%clk 0:02:57.4]} 1... e5 {[%clk 0:02:56.3]} 2. Nf3 {[%clk 0:02:57.1]}
2... Nc6 {[%clk 0:02:56.3]} 3. d4 {[%clk 0:02:58]} 3... exd4 {[%clk 0:02:54.7]}
4. Bc4 {[%clk 0:02:58.5]} 4... Nf6 {[%clk 0:02:45.1]} 5. O-O {[%clk 0:02:57]}
5... Nxe4 {[%clk 0:02:42.8]} 6. Re1 {[%clk 0:02:57.2]} 6... d5 {[%clk
0:02:42.9]} 7. Bxd5 {[%clk 0:02:57.4]} 7... Qxd5 {[%clk 0:02:43.5]} 8. Nc3
{[%clk 0:02:57.7]} 8... Qa5 {[%clk 0:02:42.9]} 9. Nxe4 {[%clk 0:02:56.5]} 9...
Be6 {[%clk 0:02:42.7]} 10. Neg5 {[%clk 0:02:56.6]} 10... O-O-O {[%clk
0:02:41.3]} 11. Nxe6 {[%clk 0:02:57.2]} 11... fxe6 {[%clk 0:02:40]} 12. Rxe6
{[%clk 0:02:58.1]} 12... h6 {[%clk 0:02:37.7]} 13. Qe2 {[%clk 0:02:57.5]} 13...
Qd5 {[%clk 0:02:29.9]} 14. Qe4 {[%clk 0:02:55.4]} 14... Qxe4 {[%clk 0:02:23.8]}
15. Rxe4 {[%clk 0:02:54.1]} 15... Bc5 {[%clk 0:02:22.7]} 16. Bd2 {[%clk
0:02:53.5]} 16... Rde8 {[%clk 0:02:15.7]} 17. Rae1 {[%clk 0:02:52.3]} 17... Rxe4
{[%clk 0:02:15.2]} 18. Rxe4 {[%clk 0:02:53.2]} 18... Kd7 {[%clk 0:02:15.1]} 19.
Kf1 {[%clk 0:02:53.5]} 19... Bb6 {[%clk 0:02:07.3]} 20. Ke2 {[%clk 0:02:52.3]}
20... Rf8 {[%clk 0:01:57.9]} 21. a3 {[%clk 0:02:49.1]} 21... Rf5 {[%clk
0:01:54]} 22. g4 {[%clk 0:02:40.8]} 22... Rf7 {[%clk 0:01:48.3]} 23. h4 {[%clk
0:02:38.5]} 23... Kd6 {[%clk 0:01:42.3]} 24. Rf4 {[%clk 0:02:30]} 24... Rxf4
{[%clk 0:01:30.7]} 25. Bxf4+ {[%clk 0:02:29.5]} 25... Kd5 {[%clk 0:01:31.6]} 26.
Kd3 {[%clk 0:02:28.5]} 26... Nd8 {[%clk 0:01:29.9]} 27. Be5 {[%clk 0:02:20.9]}
27... Ne6 {[%clk 0:01:25.8]} 28. b4 {[%clk 0:02:17.6]} 28... g6 {[%clk 0:01:19]}
29. Bg3 {[%clk 0:02:03.6]} 29... c5 {[%clk 0:01:15.9]} 30. bxc5 {[%clk
0:02:03.5]} 30... Nxc5+ {[%clk 0:01:16.3]} 31. Ke2 {[%clk 0:02:00.9]} 31... Ne4
{[%clk 0:01:07.5]} 32. Bf4 {[%clk 0:01:57]} 32... h5 {[%clk 0:01:03.5]} 33. g5
{[%clk 0:01:53.3]} 33... a5 {[%clk 0:00:53.4]} 34. Ne5 {[%clk 0:01:48.1]} 34...
a4 {[%clk 0:00:46.4]} 35. Nxg6 {[%clk 0:01:47.9]} 35... Bc5 {[%clk 0:00:46.6]}
36. Bc1 {[%clk 0:01:48.1]} 36... Nc3+ {[%clk 0:00:25.2]} 37. Kd3 {[%clk
0:01:45.1]} 37... Nb5 {[%clk 0:00:26.1]} 38. Nf4+ {[%clk 0:01:42.6]} 38... Ke5
{[%clk 0:00:24.9]} 39. Nxh5 {[%clk 0:01:38.2]} 39... Bxa3 {[%clk 0:00:11.7]} 40.
Bxa3 {[%clk 0:01:32.8]} 40... Nxa3 {[%clk 0:00:12.6]} 41. g6 {[%clk 0:01:33.3]}
41... Ke6 {[%clk 0:00:12.5]} 42. Nf4+ {[%clk 0:01:26.9]} 42... Kf6 {[%clk
0:00:12]} 43. h5 {[%clk 0:01:26.7]} 43... Nb5 {[%clk 0:00:07.7]} 44. Nd5+ {[%clk
0:01:25.4]} 44... Kg7 {[%clk 0:00:06]} 45. f4 {[%clk 0:01:25.4]} 45... a3 {[%clk
0:00:02.8]} 46. Nb4 {[%clk 0:01:25.3]} 1-0

[Event "Early-Titled-Tuesday-Blitz-July-09-2024"]
[Site "Chess.com"]
[Date "2024.07.09"]
[Round "7"]
[White "Timerkhanov"]
[Black "MusicCityMaster"]
[Result "1/2-1/2"]
[WhiteElo "2662"]
[BlackElo "2509"]
[TimeControl "180+1"]
[EndTime "9:19:04 PDT"]
[Termination "Game drawn by repetition"]

1. d4 {[%clk 0:03:00.9]} 1... Nf6 {[%clk 0:02:59.8]} 2. Bg5 {[%clk 0:03:00.5]}
2... e6 {[%clk 0:02:59.5]} 3. Nd2 {[%clk 0:03:00.8]} 3... d5 {[%clk 0:02:58]} 4.
e3 {[%clk 0:03:00.8]} 4... a6 {[%clk 0:02:55.4]} 5. Bd3 {[%clk 0:02:58]} 5... c5
{[%clk 0:02:55.5]} 6. c3 {[%clk 0:02:57.8]} 6... b5 {[%clk 0:02:52.9]} 7. f4
{[%clk 0:02:55.1]} 7... Bb7 {[%clk 0:02:46.8]} 8. Ngf3 {[%clk 0:02:55.2]} 8...
Be7 {[%clk 0:02:44.1]} 9. Bxf6 {[%clk 0:02:53.5]} 9... Bxf6 {[%clk 0:02:40.5]}
10. O-O {[%clk 0:02:54.4]} 10... Nd7 {[%clk 0:02:38.8]} 11. Ne5 {[%clk
0:02:54.7]} 11... cxd4 {[%clk 0:02:30.1]} 12. cxd4 {[%clk 0:02:50.4]} 12... g6
{[%clk 0:02:11.6]} 13. Nb3 {[%clk 0:02:46.3]} 13... Bg7 {[%clk 0:02:09.7]} 14.
Nxd7 {[%clk 0:02:44.7]} 14... Qxd7 {[%clk 0:02:08.8]} 15. Nc5 {[%clk 0:02:45.6]}
15... Qe7 {[%clk 0:02:08.9]} 16. a4 {[%clk 0:02:45.6]} 16... b4 {[%clk
0:01:59.5]} 17. a5 {[%clk 0:02:45]} 17... O-O {[%clk 0:01:58.9]} 18. Qa4 {[%clk
0:02:44.2]} 18... Rfb8 {[%clk 0:01:43.9]} 19. Qxb4 {[%clk 0:02:35.8]} 19... Bc6
{[%clk 0:01:43.7]} 20. Qc3 {[%clk 0:02:34.6]} 20... Bb5 {[%clk 0:01:42.4]} 21.
Rfc1 {[%clk 0:02:30.2]} 21... g5 {[%clk 0:01:34.9]} 22. Bxb5 {[%clk 0:01:52.4]}
22... Rxb5 {[%clk 0:01:34.5]} 23. g3 {[%clk 0:01:44.6]} 23... gxf4 {[%clk
0:01:32.2]} 24. gxf4 {[%clk 0:01:45.5]} 24... Kh8 {[%clk 0:01:31.6]} 25. Kh1
{[%clk 0:01:41]} 25... Rg8 {[%clk 0:01:30.1]} 26. Nxa6 {[%clk 0:01:35.2]} 26...
Qh4 {[%clk 0:01:27.4]} 27. Nc7 {[%clk 0:01:21.5]} 27... Qh3 {[%clk 0:01:23.4]}
28. Rf1 {[%clk 0:01:10.5]} 28... Be5 {[%clk 0:01:12.3]} 29. Rf2 {[%clk
0:01:04.3]} 29... Qf5 {[%clk 0:00:52.1]} 30. Rg1 {[%clk 0:00:46.1]} 30... Qe4+
{[%clk 0:00:51.7]} 31. Rfg2 {[%clk 0:00:45.2]} 31... Bxc7 {[%clk 0:00:32.4]} 32.
Qxc7 {[%clk 0:00:44.6]} 32... Rxg2 {[%clk 0:00:26.5]} 33. Rxg2 {[%clk
0:00:41.2]} 33... Qb1+ {[%clk 0:00:26.7]} 34. Rg1 {[%clk 0:00:41.7]} 34... Qe4+
{[%clk 0:00:27]} 35. Rg2 {[%clk 0:00:42.3]} 35... Qb1+ {[%clk 0:00:20.2]} 36.
Rg1 {[%clk 0:00:42.1]} 36... Qe4+ {[%clk 0:00:20.9]} 37. Rg2 {[%clk 0:00:42.5]}
1/2-1/2

[Event "Early-Titled-Tuesday-Blitz-July-09-2024"]
[Site "Chess.com"]
[Date "2024.07.09"]
[Round "7"]
[White "Gyulamiryan-koryun"]
[Black "el008"]
[Result "0-1"]
[WhiteElo "1888"]
[BlackElo "2540"]
[TimeControl "180+1"]
[EndTime "9:19:06 PDT"]
[Termination "el008 won by resignation"]

1. d4 {[%clk 0:03:00.9]} 1... d5 {[%clk 0:02:56.6]} 2. c4 {[%clk 0:03:00.8]}
2... e6 {[%clk 0:02:56.3]} 3. Nc3 {[%clk 0:03:01.1]} 3... Bb4 {[%clk 0:02:56.3]}
4. Qa4+ {[%clk 0:02:59.6]} 4... Nc6 {[%clk 0:02:56]} 5. Nf3 {[%clk 0:03:00]}
5... Ne7 {[%clk 0:02:54.9]} 6. a3 {[%clk 0:02:59.5]} 6... Bxc3+ {[%clk
0:02:55.2]} 7. bxc3 {[%clk 0:02:59.7]} 7... O-O {[%clk 0:02:54.9]} 8. Bf4 {[%clk
0:02:59.5]} 8... Bd7 {[%clk 0:02:55]} 9. Qc2 {[%clk 0:02:58]} 9... Na5 {[%clk
0:02:53.7]} 10. cxd5 {[%clk 0:02:52.4]} 10... exd5 {[%clk 0:02:54.6]} 11. e3
{[%clk 0:02:51.6]} 11... Bf5 {[%clk 0:02:55]} 12. Bd3 {[%clk 0:02:48.2]} 12...
Bxd3 {[%clk 0:02:54.8]} 13. Qxd3 {[%clk 0:02:49.1]} 13... Nc4 {[%clk 0:02:52.4]}
14. Ne5 {[%clk 0:02:44.9]} 14... Nd6 {[%clk 0:02:51.6]} 15. c4 {[%clk
0:02:41.2]} 15... f6 {[%clk 0:02:50.9]} 16. c5 {[%clk 0:02:25.1]} 16... fxe5
{[%clk 0:02:45]} 17. cxd6 {[%clk 0:02:24.9]} 17... exf4 {[%clk 0:02:45.2]} 18.
dxe7 {[%clk 0:02:24.5]} 18... Qxe7 {[%clk 0:02:46.1]} 19. O-O {[%clk 0:02:13.2]}
19... f3 {[%clk 0:02:44.7]} 20. g3 {[%clk 0:01:53.4]} 20... c6 {[%clk
0:02:41.8]} 21. Rfe1 {[%clk 0:01:46.8]} 21... Rae8 {[%clk 0:02:41]} 22. Rab1
{[%clk 0:01:43.5]} 22... Rf6 {[%clk 0:02:40.6]} 23. a4 {[%clk 0:01:32.5]} 23...
Rh6 {[%clk 0:02:40.5]} 24. a5 {[%clk 0:01:28.8]} 24... Qd7 {[%clk 0:02:39.9]}
25. Qf1 {[%clk 0:01:17.3]} 25... Re7 {[%clk 0:02:24]} 26. a6 {[%clk 0:01:15.2]}
26... b6 {[%clk 0:02:24.3]} 27. Rbc1 {[%clk 0:01:13.9]} 27... Qg4 {[%clk
0:02:22.4]} 28. Rc3 {[%clk 0:01:03.9]} 28... Qh5 {[%clk 0:02:22.5]} 29. h3
{[%clk 0:00:53.3]} 29... Ree6 {[%clk 0:02:19.4]} 30. Kh2 {[%clk 0:00:48.9]}
30... Qf5 {[%clk 0:02:16.2]} 31. h4 {[%clk 0:00:36.5]} 31... g5 {[%clk
0:02:10.9]} 32. Qh3 {[%clk 0:00:35.2]} 32... g4 {[%clk 0:01:49.9]} 33. Qf1
{[%clk 0:00:34.5]} 33... Qf6 {[%clk 0:01:50.6]} 34. Qh1 {[%clk 0:00:27.5]} 34...
Rh5 {[%clk 0:01:41.8]} 35. Kg1 {[%clk 0:00:24.5]} 35... Qf8 {[%clk 0:01:38.3]}
36. Rec1 {[%clk 0:00:21.4]} 36... c5 {[%clk 0:01:38.6]} 37. dxc5 {[%clk
0:00:20.9]} 37... bxc5 {[%clk 0:01:39]} 38. Rxc5 {[%clk 0:00:20.9]} 38... Kg7
{[%clk 0:01:27.5]} 39. Kh2 {[%clk 0:00:21.1]} 39... Qd6 {[%clk 0:01:25.9]} 40.
Kg1 {[%clk 0:00:15.6]} 40... Qxa6 {[%clk 0:01:25.8]} 41. Kh2 {[%clk 0:00:11.8]}
41... Qd6 {[%clk 0:01:24.4]} 42. Rc7+ {[%clk 0:00:09.9]} 42... Kg6 {[%clk
0:01:24.4]} 43. Kg1 {[%clk 0:00:06]} 43... d4 {[%clk 0:01:22.9]} 44. exd4 {[%clk
0:00:04.2]} 44... Qxd4 {[%clk 0:01:21.9]} 45. Rxa7 {[%clk 0:00:04]} 45... Qxa7
{[%clk 0:01:21.5]} 0-1

[Event "Early-Titled-Tuesday-Blitz-July-09-2024"]
[Site "Chess.com"]
[Date "2024.07.09"]
[Round "7"]
[White "CristhianPortalR"]
[Black "biveklama"]
[Result "0-1"]
[WhiteElo "2509"]
[BlackElo "2671"]
[TimeControl "180+1"]
[EndTime "9:19:11 PDT"]
[Termination "biveklama won on time"]

1. e4 {[%clk 0:02:59.9]} 1... c5 {[%clk 0:02:59.2]} 2. Nf3 {[%clk 0:02:54.5]}
2... d6 {[%clk 0:02:59.2]} 3. d4 {[%clk 0:02:54.1]} 3... cxd4 {[%clk 0:03:00.1]}
4. Nxd4 {[%clk 0:02:50]} 4... Nf6 {[%clk 0:03:00.1]} 5. Nc3 {[%clk 0:02:46.6]}
5... e5 {[%clk 0:03:00.7]} 6. Ndb5 {[%clk 0:02:37]} 6... a6 {[%clk 0:03:00.4]}
7. Na3 {[%clk 0:02:35.4]} 7... b5 {[%clk 0:03:01.1]} 8. Nd5 {[%clk 0:02:01.6]}
8... Nxd5 {[%clk 0:03:00.4]} 9. Qxd5 {[%clk 0:01:58]} 9... Ra7 {[%clk
0:03:00.6]} 10. Be3 {[%clk 0:01:57.9]} 10... Be6 {[%clk 0:02:57.8]} 11. Qd2
{[%clk 0:01:54.8]} 11... Rb7 {[%clk 0:02:49.3]} 12. c3 {[%clk 0:01:54.5]} 12...
d5 {[%clk 0:02:21.2]} 13. exd5 {[%clk 0:01:29.7]} 13... Qxd5 {[%clk 0:02:20.1]}
14. Qxd5 {[%clk 0:01:12.4]} 14... Bxd5 {[%clk 0:02:21]} 15. Nc2 {[%clk
0:01:10.6]} 15... Nc6 {[%clk 0:02:08]} 16. f3 {[%clk 0:01:06.4]} 16... Be7
{[%clk 0:01:58.4]} 17. Be2 {[%clk 0:01:06]} 17... f5 {[%clk 0:01:41]} 18. O-O
{[%clk 0:01:03.8]} 18... Kf7 {[%clk 0:01:41.1]} 19. f4 {[%clk 0:00:58.8]} 19...
e4 {[%clk 0:01:37.1]} 20. Rfd1 {[%clk 0:00:58.4]} 20... Rd8 {[%clk 0:01:35.7]}
21. Kf2 {[%clk 0:00:24]} 21... a5 {[%clk 0:01:27.9]} 22. a4 {[%clk 0:00:13.5]}
22... bxa4 {[%clk 0:01:20.9]} 23. Rxd5 {[%clk 0:00:13.3]} 23... Rxd5 {[%clk
0:01:17.5]} 24. Bc4 {[%clk 0:00:13.3]} 24... Ke6 {[%clk 0:01:13.4]} 25. Rd1
{[%clk 0:00:13.4]} 25... Rb5 {[%clk 0:01:08]} 26. Bxd5+ {[%clk 0:00:05.1]} 26...
Rxd5 {[%clk 0:01:05.6]} 27. Rxd5 {[%clk 0:00:05.5]} 27... Kxd5 {[%clk
0:01:06.5]} 28. Bd4 {[%clk 0:00:06]} 28... Nxd4 {[%clk 0:01:05.1]} 29. Nxd4
{[%clk 0:00:06.9]} 29... Bc5 {[%clk 0:01:05.3]} 30. Ke3 {[%clk 0:00:07.2]} 30...
Bxd4+ {[%clk 0:01:06.2]} 31. cxd4 {[%clk 0:00:07.8]} 31... Kc4 {[%clk
0:01:06.7]} 32. h3 {[%clk 0:00:07.8]} 32... h5 {[%clk 0:01:06.6]} 33. g4 {[%clk
0:00:07.5]} 33... hxg4 {[%clk 0:01:07.2]} 34. hxg4 {[%clk 0:00:08.4]} 34... g6
{[%clk 0:01:08.1]} 35. gxf5 {[%clk 0:00:03.5]} 35... gxf5 {[%clk 0:01:07.8]} 0-1

[Event "Early-Titled-Tuesday-Blitz-July-09-2024"]
[Site "Chess.com"]
[Date "2024.07.09"]
[Round "7"]
[White "KNVB"]
[Black "MatthewG-p4p"]
[Result "0-1"]
[WhiteElo "2668"]
[BlackElo "2913"]
[TimeControl "180+1"]
[EndTime "9:19:12 PDT"]
[Termination "MatthewG-p4p won by resignation"]

1. d4 {[%clk 0:03:00.9]} 1... Nf6 {[%clk 0:02:58]} 2. Bf4 {[%clk 0:03:01]} 2...
c5 {[%clk 0:02:58.1]} 3. e3 {[%clk 0:03:01.1]} 3... g6 {[%clk 0:02:57.9]} 4. c3
{[%clk 0:02:59.9]} 4... cxd4 {[%clk 0:02:57.7]} 5. exd4 {[%clk 0:03:00.1]} 5...
Bg7 {[%clk 0:02:58.4]} 6. Nf3 {[%clk 0:02:59.9]} 6... O-O {[%clk 0:02:58.6]} 7.
Be2 {[%clk 0:02:52.1]} 7... d6 {[%clk 0:02:54.5]} 8. O-O {[%clk 0:02:52]} 8...
Nc6 {[%clk 0:02:54.5]} 9. Re1 {[%clk 0:02:18.5]} 9... Re8 {[%clk 0:02:50.6]} 10.
d5 {[%clk 0:02:00.5]} 10... e5 {[%clk 0:02:09.8]} 11. dxe6 {[%clk 0:01:13]}
11... Bxe6 {[%clk 0:02:09.8]} 12. Na3 {[%clk 0:00:33.6]} 12... Qb6 {[%clk
0:02:03]} 13. Qc1 {[%clk 0:00:33.7]} 13... Rac8 {[%clk 0:01:44]} 14. Nb5 {[%clk
0:00:19.3]} 14... Ng4 {[%clk 0:00:46.4]} 15. Bg3 {[%clk 0:00:13.3]} 15... Nce5
{[%clk 0:00:46.8]} 16. Nbd4 {[%clk 0:00:05.9]} 16... Bd5 {[%clk 0:00:43.4]} 17.
h3 {[%clk 0:00:02.9]} 17... Nf6 {[%clk 0:00:39]} 18. Qc2 {[%clk 0:00:01.7]}
18... Ne4 {[%clk 0:00:32.3]} 19. Bf4 {[%clk 0:00:01.5]} 19... Nxf3+ {[%clk
0:00:29]} 20. Bxf3 {[%clk 0:00:01.5]} 20... Qxd4 {[%clk 0:00:21.5]} 21. cxd4
{[%clk 0:00:01.2]} 21... Rxc2 {[%clk 0:00:21.4]} 22. Bxe4 {[%clk 0:00:01.8]}
22... Rxe4 {[%clk 0:00:21.3]} 0-1

[Event "Early-Titled-Tuesday-Blitz-July-09-2024"]
[Site "Chess.com"]
[Date "2024.07.09"]
[Round "7"]
[White "Shuvalov"]
[Black "maroro07"]
[Result "1-0"]
[WhiteElo "2590"]
[BlackElo "2389"]
[TimeControl "180+1"]
[EndTime "9:19:14 PDT"]
[Termination "Shuvalov won by resignation"]

1. c4 {[%clk 0:03:00.9]} 1... c5 {[%clk 0:02:48.9]} 2. Nf3 {[%clk 0:03:00.2]}
2... Nc6 {[%clk 0:02:48.5]} 3. d4 {[%clk 0:02:59.9]} 3... cxd4 {[%clk
0:02:48.3]} 4. Nxd4 {[%clk 0:03:00.7]} 4... Nf6 {[%clk 0:02:46.3]} 5. Nc3 {[%clk
0:03:00.3]} 5... e6 {[%clk 0:02:43.7]} 6. g3 {[%clk 0:02:58]} 6... Bc5 {[%clk
0:02:37.3]} 7. Be3 {[%clk 0:02:53.2]} 7... Qb6 {[%clk 0:02:30.9]} 8. Na4 {[%clk
0:02:29.2]} 8... Bb4+ {[%clk 0:02:26]} 9. Nc3 {[%clk 0:02:29.4]} 9... Ng4 {[%clk
0:01:51.8]} 10. Nc2 {[%clk 0:02:16.9]} 10... Nxe3 {[%clk 0:01:44.3]} 11. Nxe3
{[%clk 0:02:17.8]} 11... Bxc3+ {[%clk 0:01:38.7]} 12. bxc3 {[%clk 0:02:18]}
12... O-O {[%clk 0:01:35.8]} 13. Bg2 {[%clk 0:02:18]} 13... Qa5 {[%clk
0:01:29.5]} 14. Qd2 {[%clk 0:02:11.7]} 14... b5 {[%clk 0:01:22.1]} 15. O-O
{[%clk 0:02:07.2]} 15... Ba6 {[%clk 0:01:12]} 16. Qxd7 {[%clk 0:01:57.4]} 16...
Rac8 {[%clk 0:00:20.3]} 17. cxb5 {[%clk 0:01:47]} 17... Bxb5 {[%clk 0:00:19.7]}
18. c4 {[%clk 0:01:46.3]} 18... Ba4 {[%clk 0:00:19.6]} 19. Qd6 {[%clk
0:01:34.3]} 19... Ne5 {[%clk 0:00:19.5]} 20. Rfc1 {[%clk 0:01:27.4]} 20... Rfd8
{[%clk 0:00:18.9]} 21. Qa3 {[%clk 0:01:26.8]} 21... Nc6 {[%clk 0:00:11.3]} 22.
c5 {[%clk 0:01:22.9]} 22... Nd4 {[%clk 0:00:11.5]} 23. Bf1 {[%clk 0:01:18.4]}
23... Qb5 {[%clk 0:00:09.9]} 24. Rab1 {[%clk 0:01:15.4]} 24... Qd7 {[%clk
0:00:10.1]} 25. Nc4 {[%clk 0:01:10.7]} 25... Bb5 {[%clk 0:00:08.9]} 26. e3
{[%clk 0:01:06]} 26... a6 {[%clk 0:00:07.3]} 27. exd4 {[%clk 0:01:05.3]} 27...
Qxd4 {[%clk 0:00:06.7]} 28. Nd6 {[%clk 0:01:04]} 28... Bc6 {[%clk 0:00:04.7]}
29. Bg2 {[%clk 0:00:54.5]} 29... Bxg2 {[%clk 0:00:02.6]} 30. Kxg2 {[%clk
0:00:55.4]} 30... Qd5+ {[%clk 0:00:03.2]} 31. Qf3 {[%clk 0:00:54.9]} 31... Qxf3+
{[%clk 0:00:02.6]} 32. Kxf3 {[%clk 0:00:55]} 32... Rc6 {[%clk 0:00:03.5]} 33.
Nb7 {[%clk 0:00:48.5]} 33... Rdc8 {[%clk 0:00:03]} 34. Na5 {[%clk 0:00:47.1]}
1-0

[Event "Early-Titled-Tuesday-Blitz-July-09-2024"]
[Site "Chess.com"]
[Date "2024.07.09"]
[Round "7"]
[White "Orest_Vovk"]
[Black "chessdjw"]
[Result "0-1"]
[WhiteElo "2531"]
[BlackElo "2754"]
[TimeControl "180+1"]
[EndTime "9:19:16 PDT"]
[Termination "chessdjw won by resignation"]

1. h4 {[%clk 0:02:47.4]} 1... e5 {[%clk 0:02:59.1]} 2. h5 {[%clk 0:02:47.7]}
2... d5 {[%clk 0:02:58.5]} 3. h6 {[%clk 0:02:47.8]} 3... Nxh6 {[%clk 0:02:56.3]}
4. d4 {[%clk 0:02:48.1]} 4... e4 {[%clk 0:02:32.6]} 5. Bxh6 {[%clk 0:02:36.7]}
5... gxh6 {[%clk 0:02:32.4]} 6. e3 {[%clk 0:02:37.6]} 6... Be6 {[%clk 0:02:29]}
7. c4 {[%clk 0:02:37.3]} 7... c6 {[%clk 0:02:26]} 8. Qb3 {[%clk 0:02:36.4]} 8...
Qb6 {[%clk 0:02:22.5]} 9. Nc3 {[%clk 0:02:32.8]} 9... Bb4 {[%clk 0:02:15.7]} 10.
Rxh6 {[%clk 0:02:21.6]} 10... Nd7 {[%clk 0:02:14.3]} 11. cxd5 {[%clk 0:02:15.8]}
11... cxd5 {[%clk 0:01:57.9]} 12. Nh3 {[%clk 0:01:58.7]} 12... Rc8 {[%clk
0:01:49.2]} 13. Rc1 {[%clk 0:01:53.6]} 13... Ke7 {[%clk 0:01:41.8]} 14. Nf4
{[%clk 0:01:51.2]} 14... Bxc3+ {[%clk 0:01:40.4]} 15. Rxc3 {[%clk 0:01:48.2]}
15... Qxb3 {[%clk 0:01:38.3]} 16. axb3 {[%clk 0:01:44.9]} 16... Nf6 {[%clk
0:01:21.1]} 17. Be2 {[%clk 0:01:38.1]} 17... Rc6 {[%clk 0:01:10.9]} 18. b4
{[%clk 0:01:25.5]} 18... Rxc3 {[%clk 0:00:59.3]} 19. bxc3 {[%clk 0:01:24.9]}
19... Ra8 {[%clk 0:00:55.8]} 20. g4 {[%clk 0:01:08.5]} 20... Rg8 {[%clk
0:00:51.7]} 21. Kd2 {[%clk 0:00:55.4]} 21... Bxg4 {[%clk 0:00:50.2]} 22. Bxg4
{[%clk 0:00:29.5]} 22... Rxg4 {[%clk 0:00:49.9]} 23. b5 {[%clk 0:00:26.5]} 23...
Rg1 {[%clk 0:00:48.9]} 24. c4 {[%clk 0:00:17.7]} 24... dxc4 {[%clk 0:00:46.6]}
25. d5 {[%clk 0:00:18.1]} 25... Ne8 {[%clk 0:00:28.3]} 26. Kc3 {[%clk
0:00:14.2]} 26... Nd6 {[%clk 0:00:27.9]} 27. Kd4 {[%clk 0:00:09.8]} 27... Nf5+
{[%clk 0:00:27.1]} 0-1